lending/lending_fUSD_20250409
["ID","MTS","AMOUNT","RATE_DAILY","PERIOD"]
[357599604,1744225305862,-234.0,0.00041096,13]
[357599605,1744225305888,-296.0,0.00041096,30]
[357599606,1744225305915,-2000.0,0.00041096,13]
[357599607,1744225305942,-979.0,0.00041096,13]
[357599608,1744225305968,-151.0,0.00041096,14]
[357599609,1744225305995,-151.0,0.00041096,14]
[357599610,1744225306022,-151.0,0.00041096,14]
[357599611,1744225306048,-151.0,0.00041096,14]
[357599612,1744225306077,-151.0,0.00041096,14]
[357599613,1744225306109,-151.0,0.00041096,14]
[357599614,1744225306136,-151.0,0.00041096,14]
[357599615,1744225306163,-151.0,0.00041096,14]
[357599616,1744225306190,-151.0,0.00041096,14]
[357599617,1744225306470,-151.0,0.00041096,14]
[357599618,1744225306498,-151.0,0.00041096,14]
[357599619,1744225306524,-192.842246,0.00041096,14]
[357599620,1744225306660,7758.1186098,0.000399,15]
[357599621,1744225383690,151.20146,0.000299,45]
[357599622,1744225490397,-150.0,0.00044167,30]
[357599623,1744225490423,-610.0,0.00044167,31]
[357599624,1744225490448,-610.0,0.00044167,31]
[357599625,1744225490473,-612.0,0.00044167,31]
[357599626,1744225490497,-610.0,0.00044167,31]
[357599627,1744225490521,-1000.0,0.00044167,30]
[357599628,1744225490545,-1407953.99264905,0.00044167,30]
[357599629,1744225490569,-32984.74020874,0.00044167,30]
[357599630,1744225490593,-207.21475664,0.00044167,30]
[357599631,1744225490617,-1318.44385445,0.00044167,90]
[357599632,1744225490646,-2005.29608042,0.00044167,30]
[357599633,1744225490674,-3869.58963463,0.00044167,120]
[357599634,1744225490708,-1468.57687284,0.00044167,30]
[357599635,1744225490741,-2099.44896649,0.00044167,120]
[357599636,1744225490770,-2203.81413998,0.00044167,30]
[357599637,1744225490801,-10000.0,0.00044167,31]
[357599638,1744225490833,-50000.0,0.00044167,30]
[357599639,1744225490863,-50000.0,0.00044167,31]
[357599640,1744225490893,-50000.0,0.00044167,32]
[357599641,1744225490923,-50000.0,0.00044167,33]
[357599642,1744225490952,-50000.0,0.00044167,34]
[357599643,1744225490984,-10000.0,0.00044167,30]
[357599644,1744225491010,-4321.65716766,0.00044167,120]
[357599645,1744225491036,-5007.54980861,0.00044167,30]
[357599646,1744225491064,-271.0,0.00044167,120]
[357599647,1744225491089,-1000.0,0.00044167,30]
[357599648,1744225491113,-1000.0,0.00044167,30]
[357599649,1744225491140,-1000.0,0.00044167,30]
[357599650,1744225491170,-1000.0,0.00044167,30]
[357599651,1744225491194,-1000.0,0.00044167,30]
[357599652,1744225491224,-1000.0,0.00044167,30]
[357599653,1744225491249,-1000.0,0.00044167,30]
[357599654,1744225491273,-274.57725568,0.00044167,30]
[357599655,1744225491297,-1000.0,0.00044167,30]
[357599656,1744225491320,-1000.0,0.00044167,30]
[357599657,1744225491345,-1000.0,0.00044167,30]
[357599658,1744225491369,-1000.0,0.00044167,30]
[357599659,1744225491398,-228.25676401,0.00044167,30]
[357599660,1744225491422,-711.84034685,0.00044167,30]
[357599661,1744225491445,-1000.0,0.00044167,30]
[357599662,1744225491476,-1000.0,0.00044167,30]
[357599663,1744225491501,-2000.0,0.00044167,120]
[357599664,1744225491525,-1000.0,0.00044167,30]
[357599665,1744225491550,-1000.0,0.00044167,30]
[357599666,1744225491573,-1000.0,0.00044167,30]
[357599667,1744225491597,-206.2,0.00044167,30]
[357599668,1744225491623,-206.2,0.00044167,30]
[357599669,1744225491649,-1000.0,0.00044167,60]
[357599670,1744225491675,-1000.0,0.00044167,30]
[357599671,1744225491700,-1000.0,0.00044167,60]
[357599672,1744225491729,-1000.0,0.00044167,30]
[357599673,1744225491755,-1000.0,0.00044167,60]
[357599674,1744225491781,-1000.0,0.00044167,60]
[357599675,1744225491807,-357.23957454,0.00044167,60]
[357599676,1744225491832,-1000.0,0.00044167,30]
[357599677,1744225491857,-1000.0,0.00044167,60]
[357599678,1744225491883,-1000.0,0.00044167,30]
[357599679,1744225491908,-1000.0,0.00044167,60]
[357599680,1744225491934,-1000.0,0.00044167,30]
[357599681,1744225491961,-1000.0,0.00044167,30]
[357599682,1744225491987,-1000.0,0.00044167,30]
[357599683,1744225492013,-1000.0,0.00044167,30]
[357599684,1744225492039,-1000.0,0.00044167,60]
[357599685,1744225492069,-1000.0,0.00044167,30]
[357599686,1744225492095,-1000.0,0.00044167,30]
[357599687,1744225492121,-1000.0,0.00044167,30]
[357599688,1744225492148,-1000.0,0.00044167,120]
[357599689,1744225492173,-1000.0,0.00044167,60]
[357599690,1744225492200,-1000.0,0.00044167,60]
[357599691,1744225492228,-1000.0,0.00044167,60]
[357599692,1744225492254,-1000.0,0.00044167,120]
[357599693,1744225492280,-1000.0,0.00044167,60]
[357599694,1744225492305,-1307.3,0.00044167,120]
[357599695,1744225492330,-500.0,0.00044167,120]
[357599696,1744225492355,-476.12038879,0.00044167,120]
[357599697,1744225492380,-418.17546434,0.00044167,120]
[357599698,1744225492404,-1240.86808228,0.00044167,30]
[357599699,1744225492429,-166.24683142,0.00044167,120]
[357599700,1744225492456,-511.41306486,0.00044167,30]
[357599701,1744225492481,-382.21755065,0.00044167,30]
[357599702,1744225492742,-949.22448301,0.00044167,91]
[357599703,1744225492768,-714.88246013,0.00044167,30]
[357599704,1744225492794,-876.77861003,0.00044167,30]
[357599705,1744225492821,-1000.0,0.00044167,30]
[357599706,1744225492847,-395.07500688,0.00044167,120]
[357599707,1744225492872,-557.32480695,0.00044167,120]
[357599708,1744225492897,-739.87285424,0.00044167,30]
[357599709,1744225492922,-1751.06651343,0.00044167,30]
[357599710,1744225492947,-946.96330322,0.00044167,30]
[357599711,1744225492973,-500.0,0.00044167,30]
[357599712,1744225492998,-332.21356081,0.00044167,120]
[357599713,1744225493024,-157.52905982,0.00044167,120]
[357599714,1744225493050,-365.99859813,0.00044167,120]
[357599715,1744225493075,-858.81319652,0.00044167,30]
[357599716,1744225493100,-867.02718882,0.00044167,30]
[357599717,1744225493127,-172.11457581,0.00044167,120]
[357599718,1744225493151,-933.91038548,0.00044167,30]
[357599719,1744225493176,-825.87028649,0.00044167,120]
[357599720,1744225493201,-726.14603503,0.00044167,60]
[357599721,1744225493228,-516.11012548,0.00044167,30]
[357599722,1744225493253,-209.02852827,0.00044167,30]
[357599723,1744225493280,-964.81291771,0.00044167,30]
[357599724,1744225493305,-286.17794012,0.00044167,120]
[357599725,1744225493330,-208.84709069,0.00044167,120]
[357599726,1744225493355,-511.84730535,0.00044167,120]
[357599727,1744225493381,-1015.73399591,0.00044167,30]
[357599728,1744225493406,-352.63592078,0.00044167,30]
[357599729,1744225493431,-365.22927991,0.00044167,60]
[357599730,1744225493459,-705.61218643,0.00044167,120]
[357599731,1744225493484,-374.08594938,0.00044167,30]
[357599732,1744225493509,-206.937395,0.00044167,30]
[357599733,1744225493535,-406.72807994,0.00044167,120]
[357599734,1744225493560,-327.01907004,0.00044167,120]
[357599735,1744225493584,-197.71108196,0.00044167,120]
[357599736,1744225493609,-426.74868322,0.00044167,30]
[357599737,1744225493634,-1158.71482108,0.00044167,120]
[357599738,1744225493659,-1015.5753051,0.00044167,30]
[357599739,1744225493684,-187.09407126,0.00044167,120]
[357599740,1744225493710,-332.61504763,0.00044167,120]
[357599741,1744225493735,-425.2215861,0.00044167,30]
[357599742,1744225493761,-1084.78978454,0.00044167,120]
[357599743,1744225493786,-507.79272314,0.00044167,120]
[357599744,1744225493812,-613.24260533,0.00044167,30]
[357599745,1744225493838,-431.19462574,0.00044167,30]
[357599746,1744225493862,-2351.92967836,0.00044167,30]
[357599747,1744225493888,-407.27134154,0.00044167,30]
[357599748,1744225493914,-390.80416693,0.00044167,30]
[357599749,1744225493939,-954.1938291,0.00044167,120]
[357599750,1744225493965,-382.0808584,0.00044167,120]
[357599751,1744225493990,-202.27997373,0.00044167,60]
[357599752,1744225494016,-887.46871662,0.00044167,30]
[357599753,1744225494042,-742.33909381,0.00044167,120]
[357599754,1744225494072,-380.84009937,0.00044167,120]
[357599755,1744225494098,-426.64421845,0.00044167,120]
[357599756,1744225494124,-1001.55529891,0.00044167,120]
[357599757,1744225494151,-708.11155587,0.00044167,120]
[357599758,1744225494176,-200.42209696,0.00044167,60]
[357599759,1744225494202,-943.98625285,0.00044167,38]
[357599760,1744225494232,-1037442.44765671,0.00044167,60]
[357599761,1744225494258,-1101.17629213,0.00044167,120]
[357599762,1744225494283,-981.14658349,0.00044167,120]
[357599763,1744225494309,-211.22210121,0.00044167,120]
[357599764,1744225494334,-262.99221919,0.00044167,30]
[357599765,1744225494360,-508.42647731,0.00044167,120]
[357599766,1744225494386,-200.6069396,0.00044167,120]
[357599767,1744225494412,-428.54280114,0.00044167,30]
[357599768,1744225494438,-606.07822325,0.00044167,120]
[357599769,1744225494466,-264.7367254,0.00044167,120]
[357599770,1744225494492,-227.80866773,0.00044167,120]
[357599771,1744225494518,-10000.0,0.00044167,30]
[357599772,1744225494544,-1188.57335927,0.00044167,120]
[357599773,1744225494570,-182.77435074,0.00044167,30]
[357599774,1744225494596,-1500.0,0.00044167,120]
[357599775,1744225494625,-158.94279826,0.00044167,120]
[357599776,1744225494650,-158.94279826,0.00044167,120]
[357599777,1744225494676,-158.94279826,0.00044167,120]
[357599778,1744225494701,-158.94279826,0.00044167,120]
[357599779,1744225494729,-158.94279826,0.00044167,120]
[357599780,1744225494754,-150.0,0.00044167,120]
[357599781,1744225494779,-563.06933309,0.00044167,120]
[357599782,1744225494805,-284.14478141,0.00044167,120]
[357599783,1744225496471,1124.84874075,0.00044167,30]
[357599784,1744225503551,375.97,0.00044167,30]
[357599785,1744225513720,1124.84874075,0.00044167,30]
[357599786,1744225520372,150.0,0.00044167,30]
[357599787,1744225534337,1000.0,0.00044167,30]
[357599788,1744225534428,375.97,0.00044167,30]
[357599789,1744225535278,1000.0,0.00044167,30]
[357599790,1744225535497,1000.0,0.00044167,30]
[357599791,1744225536447,1000.0,0.00044167,30]
[357599792,1744225536663,1000.0,0.00044167,30]
[357599793,1744225536931,1000.0,0.00044167,30]
[357599794,1744225537589,1000.0,0.00044167,30]
[357599795,1744225537867,1000.0,0.00044167,30]
[357599796,1744225538073,274.57725568,0.00044167,30]
[357599797,1744225538722,228.25676401,0.00044167,30]
[357599798,1744225539081,711.84034685,0.00044167,30]
[357599801,1744225545541,1000.0,0.00044167,30]
[357599802,1744225562418,271.0,0.00044167,120]
[357599803,1744225569428,2000.0,0.00044167,120]
[357599804,1744225575856,47555.287616,0.00044167,30]
[357599805,1744225623878,151.0,0.00044167,30]
[357599806,1744225624534,151.0,0.00044167,30]
[357599807,1744225625183,151.0,0.00044167,30]
[357599808,1744225625792,151.0,0.00044167,30]
[357599809,1744225626424,151.0,0.00044167,30]
[357599810,1744225627050,151.0,0.00044167,30]
[357599811,1744225627668,151.0,0.00044167,30]
[357599812,1744225629176,151.0,0.00044167,30]
[357599813,1744225631426,151.0,0.00044167,30]
[357599814,1744225632105,151.0,0.00044167,30]
[357599815,1744225632736,151.0,0.00044167,30]
[357599816,1744225636976,151.0,0.00044167,30]
[357599817,1744225637620,156.587,0.00044167,30]
[357599818,1744225638250,156.587,0.00044167,30]
[357599819,1744225641864,500.0,0.00044167,30]
[357599820,1744225642622,518.5,0.00044167,30]
[357599821,1744225643299,537.6845,0.00044167,30]
[357599822,1744225643923,557.5788265,0.00044167,30]
[357599823,1744225644767,578.20924308,0.00044167,30]
[357599824,1744225645971,599.60298507,0.00044167,30]
[357599825,1744225646674,621.78829552,0.00044167,30]
[357599826,1744225647306,644.79446246,0.00044167,30]
[357599827,1744225647952,668.65185757,0.00044167,30]
[357599828,1744225648965,693.3919763,0.00044167,30]
[357599829,1744225649231,719.04747942,0.00044167,30]
[357599830,1744225650514,745.65223616,0.00044167,30]
[357599831,1744225650595,773.2413689,0.00044167,30]
[357599832,1744225651083,801.85129955,0.00044167,30]
[357599833,1744225651706,831.51979763,0.00044167,30]
[357599834,1744225652351,862.28603014,0.00044167,30]
[357599835,1744225652957,894.19061326,0.00044167,30]
[357599836,1744225653609,927.27566595,0.00044167,30]
[357599837,1744225654243,961.58486559,0.00044167,30]
[357599838,1744225654919,961.58486559,0.00044167,30]
[357599839,1744225661977,200.0,0.00044167,30]
[357599840,1744225662593,207.4,0.00044167,30]
[357599841,1744225663208,215.0738,0.00044167,30]
[357599842,1744225663821,223.0315306,0.00044167,30]
[357599843,1744225664598,231.28369723,0.00044167,30]
[357599844,1744225665235,239.84119403,0.00044167,30]
[357599845,1744225665847,248.71531821,0.00044173,30]
[357599846,1744225666503,257.91778498,0.00044173,30]
[357599847,1744225667156,267.46074303,0.00044173,30]
[357599848,1744225668270,277.35679052,0.00044173,30]
[357599849,1744225668904,287.61899177,0.00044173,30]
[357599850,1744225669703,298.26089446,0.00044173,30]
[357599851,1744225669994,158.94279826,0.00044173,120]
[357599852,1744225670323,309.29654756,0.00044173,30]
[357599853,1744225670976,320.74051982,0.00044173,30]
[357599854,1744225671014,158.94279826,0.00044173,120]
[357599855,1744225672510,332.60791905,0.00044173,30]
[357599856,1744225672567,158.94279826,0.00044173,120]
[357599857,1744225672618,344.91441206,0.00044173,30]
[357599858,1744225672833,357.6762453,0.00044173,30]
[357599859,1744225672987,158.94279826,0.00044173,120]
[357599860,1744225673439,370.91026638,0.00044173,30]
[357599861,1744225674051,158.94279826,0.00044173,120]
[357599862,1744225674083,384.63394623,0.00044173,30]
[357599863,1744225674667,384.63394623,0.00044173,30]
[357599864,1744225705215,182.77435074,0.00044173,30]
[357599866,1744225711041,1000.0,0.00044173,30]
[357599867,1744225723835,1000.0,0.00044173,60]
[357599901,1744225737138,1000.0,0.00044173,30]
[357599907,1744225749407,1000.0,0.00044173,30]
[357599924,1744225754195,357.23957454,0.00044173,60]
[357599925,1744225759998,1067.0,0.00044173,30]
[357599926,1744225762234,1000.0,0.00044173,30]
[357599927,1744225763661,1067.0,0.00044173,30]
[357599928,1744225767372,1067.0,0.00044173,30]
[357599929,1744225771077,1067.0,0.00044173,30]
[357599930,1744225774788,1067.0,0.00044173,30]
[357599931,1744225775006,1000.0,0.00044173,30]
[357599932,1744225780484,1067.0,0.00044173,30]
[357599933,1744225783395,1067.0,0.00044173,30]
[357599934,1744225787004,1067.0,0.00044173,30]
[357599935,1744225787788,1000.0,0.00044173,30]
[357599936,1744225791093,1067.0,0.00044173,30]
[357599937,1744225794434,1067.0,0.00044173,30]
[357599938,1744225798170,1067.0,0.00044173,30]
[357599939,1744225800559,1000.0,0.00044173,30]
[357599940,1744225802037,1067.0,0.00044173,30]
[357599941,1744225803728,1000.0,0.00044173,30]
[357599942,1744225803760,1000.0,0.00044173,30]
[357599943,1744225804585,1000.0,0.00044173,30]
[357599944,1744225805219,1000.0,0.00044173,30]
[357599945,1744225805258,1000.0,0.00044173,30]
[357599946,1744225805637,1073.87343606,0.00044173,30]
[357599947,1744225806144,1000.0,0.00044173,30]
[357599948,1744225808927,50000.0,0.00044173,30]
[357599950,1744225813399,1000.0,0.00044173,60]
[357599951,1744225813715,50000.0,0.00044173,31]
[357599952,1744225821898,50000.0,0.00044173,33]
[357599953,1744225822090,50000.0,0.00044173,32]
[357599954,1744225826128,1000.0,0.00044173,30]
[357599955,1744225826802,50000.0,0.00044173,34]
[357599962,1744225831534,-250.0,0.00019,2]
[357599963,1744225831544,-21.92836576,0.000199,2]
[357599964,1744225831591,-194.60221934,0.000199,2]
[357599965,1744225831601,-236.85533658,0.0002,2]
[357599966,1744225831612,-13.14466342,0.0002,2]
[357599967,1744225831622,-250.0,0.000209,2]
[357599968,1744225831631,-300.0,0.00021,2]
[357599969,1744225831641,-350.0,0.00023,2]
[357599970,1744225831650,-867.96220604,0.000247,2]
[357599971,1744225831659,-196.34138022,0.000248,2]
[357599972,1744225831668,-400.0,0.00025,2]
[357599973,1744225831677,-867.96220604,0.00025626,2]
[357599974,1744225831686,-500.0,0.00025726,2]
[357599975,1744225831696,-250.0,0.00026294,2]
[357599976,1744225831705,-277.949,0.00026849,2]
[357599977,1744225831714,-9999.99,0.00026849,2]
[357599978,1744225831723,-239.7,0.00026849,2]
[357599979,1744225831733,-9999.99,0.00026849,2]
[357599980,1744225831745,-916.96054428,0.00026849,2]
[357599981,1744225831757,-83.02945572,0.00026849,2]
[357599982,1744225831766,-315.38,0.00026849,2]
[357599984,1744225831775,-517.891,0.00026905,2]
[357599985,1744225831784,-450.0,0.00027,2]
[357599987,1744225831793,-1436.0,0.00027005,2]
[357599989,1744225831802,-1278.0,0.00027005,2]
[357599991,1744225831812,-791.0,0.00027005,2]
[357599993,1744225831821,-907.0,0.00027005,2]
[357599995,1744225831830,-321.69954418,0.00027005,2]
[357599997,1744225831842,-299.13745582,0.00027005,2]
[357599998,1744225831851,-4143.0,0.00027005,2]
[357599999,1744225831860,-151.0,0.00027005,2]
[357600000,1744225831869,-1286.86254418,0.00027005,2]
[357600001,1744225831881,-2671.13745582,0.00027005,2]
[357600002,1744225831890,-852.0,0.00027005,2]
[357600003,1744225831899,-26.86254918,0.00027482,2]
[357600004,1744225831910,-1300.0,0.00027482,2]
[357600005,1744225831921,-251.92214903,0.00027482,2]
[357600006,1744225831941,-421.21530179,0.00027482,2]
[357600008,1744225831950,-7761.78469821,0.00027657,2]
[357600053,1744225832965,-202.19530179,0.00027657,2]
[357600054,1744225832974,-500.0,0.00027683,2]
[357600055,1744225832984,-1269.98870909,0.00027704,2]
[357600056,1744225832999,-22630.01129091,0.00027704,2]
[357600057,1744225833010,-196.34138022,0.00027728,2]
[357600058,1744225833020,-159.9,0.00027828,2]
[357600059,1744225833031,-624.00779405,0.00027835,2]
[357600060,1744225833042,-159.10924691,0.00027864,2]
[357600061,1744225833053,-150.0,0.00027865,2]
[357600062,1744225833063,-2044.0,0.00027865,2]
[357600063,1744225833074,-1286.0,0.00027865,2]
[357600064,1744225833085,-574.0,0.00027865,2]
[357600065,1744225833095,-250.0,0.00027903,2]
[357600066,1744225833105,-162.3,0.00028018,2]
[357600067,1744225833116,-162.3,0.00028053,2]
[357600068,1744225833126,-162.3,0.00028088,2]
[357600069,1744225833136,-7951.29842306,0.00028108,2]
[357600075,1744225837605,-3654.27519886,0.00028108,2]
[357600077,1744225837621,-316.01150826,0.00028108,2]
[357600080,1744225837632,-10529.74486982,0.00028108,2]
[357600081,1744225837642,-162.3,0.00028123,2]
[357600082,1744225837651,-2322.8738,0.00028137,10]
[357600084,1744225837660,-162.3,0.00028158,2]
[357600085,1744225837670,-5092.0,0.00028159,2]
[357600087,1744225837679,-3535.54,0.00028214,2]
[357600089,1744225837688,-1273.0,0.000283,2]
[357600090,1744225837698,-166.66,0.00028349,2]
[357600091,1744225837707,-302.34,0.00028571,2]
[357600092,1744225837717,-690.69,0.00028571,2]
[357600093,1744225837726,-291.77,0.00028767,2]
[357600094,1744225837735,-150.0,0.00028803,2]
[357600095,1744225837745,-510.0,0.00028849,2]
[357600096,1744225837754,-324.0,0.0002893,2]
[357600097,1744225837763,-500.0,0.00029,2]
[357600098,1744225837773,-1506.1865,0.0002905,2]
[357600099,1744225837782,-1000.0,0.00029149,2]
[357600100,1744225837791,-2095.93,0.0002915,2]
[357600101,1744225837801,-1000.0,0.00029248,2]
[357600102,1744225837810,-166.66,0.00029285,2]
[357600103,1744225837819,-490.0846,0.0002969,2]
[357600104,1744225837829,-22212.8110762,0.000297,2]
[357600105,1744225837838,-224.2872,0.00029744,2]
[357600106,1744225837848,-315.4833,0.00029744,2]
[357600107,1744225837857,-268.8064,0.00029744,2]
[357600108,1744225837867,-616.7359,0.00029744,2]
[357600109,1744225837876,-6148.0055,0.00029778,2]
[357600110,1744225837886,-1184.9798,0.00029778,2]
[357600111,1744225837895,-364.9361,0.00029789,2]
[357600112,1744225837905,-20699.7263,0.0002979,2]
[357600113,1744225837915,-1000.0,0.000298,2]
[357600114,1744225837925,-2500.0,0.000298,2]
[357600115,1744225837934,-7708.00045534,0.00029844,2]
[357600116,1744225837943,-500.0,0.00029863,2]
[357600117,1744225837952,-503.51890474,0.00029873,5]
[357600118,1744225837961,-500.0,0.00029873,5]
[357600119,1744225837970,-213.37,0.0002989,2]
[357600120,1744225837979,-213.37,0.0002989,2]
[357600121,1744225837988,-213.37,0.0002989,2]
[357600122,1744225837999,-213.37,0.0002989,2]
[357600123,1744225838008,-2380.3588,0.000299,2]
[357600124,1744225838019,-1000.0,0.000299,2]
[357600126,1744225838028,-2880.0317,0.000299,2]
[357600128,1744225838038,-9148.2544,0.000299,2]
[357600130,1744225838047,-30709.58265191,0.000299,2]
[357600133,1744225838068,-418.425,0.000299,2]
[357600138,1744225838106,-474.92239782,0.000299,2]
[357600140,1744225838119,-537.2227965,0.000299,2]
[357600143,1744225838133,-268.9475329,0.000299,2]
[357600145,1744225838147,-1137.33040997,0.000299,2]
[357600148,1744225838159,-2529.9538109,0.000299,2]
[357600150,1744225838170,-500.0,0.000299,2]
[357600152,1744225838179,-1691.2143,0.000299,2]
[357600153,1744225838189,-17593.6881,0.000299,2]
[357600156,1744225838199,-500.0,0.000299,10]
[357600158,1744225838208,-6982.30674889,0.000299,2]
[357600160,1744225838218,-4469.51794377,0.00029918,2]
[357600162,1744225838228,-213.37,0.0002998,2]
[357600164,1744225838237,-213.37,0.0002998,2]
[357600166,1744225838253,-213.37,0.0002998,2]
[357600168,1744225838264,-19938.94400905,0.0002999,3]
[357600171,1744225838285,-42582.19297735,0.0002999,3]
[357600173,1744225838295,-213.37,0.0002999,2]
[357600175,1744225838305,-213.37,0.0002999,2]
[357600177,1744225838314,-213.37,0.0002999,2]
[357600178,1744225838323,-150.0,0.00029999,2]
[357600179,1744225838331,-150.0,0.00029999,2]
[357600180,1744225838341,-150.0,0.00029999,2]
[357600181,1744225838350,-150.0,0.00029999,2]
[357600182,1744225838359,-500.0,0.00029999,2]
[357600183,1744225838368,-237.72599622,0.00029999,2]
[357600184,1744225838377,-500.0,0.00029999,2]
[357600185,1744225838385,-500.0,0.00029999,2]
[357600186,1744225838394,-500.0,0.00029999,2]
[357600187,1744225838403,-500.0,0.00029999,2]
[357600188,1744225838413,-294.96037414,0.00029999,2]
[357600189,1744225838422,-500.0,0.00029999,2]
[357600190,1744225838431,-331.98441168,0.00029999,2]
[357600191,1744225838440,-500.0,0.00029999,2]
[357600192,1744225838449,-500.0,0.00029999,2]
[357600193,1744225838458,-500.0,0.00029999,2]
[357600194,1744225838467,-500.0,0.00029999,2]
[357600195,1744225838475,-500.0,0.00029999,2]
[357600196,1744225838484,-500.0,0.00029999,2]
[357600197,1744225838497,-500.0,0.00029999,2]
[357600198,1744225838507,-500.0,0.00029999,2]
[357600199,1744225838517,-500.0,0.00029999,2]
[357600200,1744225838526,-500.0,0.00029999,2]
[357600201,1744225838535,-425.0,0.00029999,2]
[357600202,1744225838544,-500.0,0.00029999,2]
[357600203,1744225838554,-500.0,0.00029999,2]
[357600204,1744225838563,-500.0,0.00029999,2]
[357600205,1744225838571,-500.0,0.00029999,2]
[357600206,1744225838581,-150.0,0.00029999,2]
[357600207,1744225838590,-150.0,0.00029999,2]
[357600208,1744225838599,-22519.72117546,0.0003,2]
[357600209,1744225838608,-515.8428079,0.0003,2]
[357600210,1744225838618,-128733.32778813,0.0003,2]
[357600211,1744225838627,-235.98934091,0.0003,2]
[357600212,1744225838635,-194.2,0.0003,2]
[357600213,1744225838644,-3715.6,0.0003,3]
[357600214,1744225838653,-4549.7261727,0.0003,2]
[357600215,1744225838662,-500.0,0.0003,15]
[357600216,1744225838671,-150.0,0.0003,15]
[357600217,1744225838680,-166.76803868,0.0003,15]
[357600218,1744225838689,-150.0,0.0003,15]
[357600219,1744225838698,-500.0,0.0003,15]
[357600220,1744225838708,-150.0,0.0003,15]
[357600221,1744225838717,-212.0,0.0003,2]
[357600222,1744225838726,-1326.0,0.00030005,2]
[357600223,1744225838736,-1436.0,0.00030005,2]
[357600224,1744225838745,-1278.0,0.00030005,2]
[357600225,1744225838755,-791.0,0.00030005,2]
[357600226,1744225838764,-907.0,0.00030005,2]
[357600227,1744225838773,-544.0,0.00030005,2]
[357600228,1744225838782,-4143.0,0.00030005,2]
[357600229,1744225838791,-151.0,0.00030005,2]
[357600230,1744225838801,-3958.0,0.00030005,2]
[357600231,1744225838810,-504.66122378,0.00030027,15]
[357600232,1744225838819,-150.0,0.00030027,15]
[357600233,1744225838829,-150.0,0.00030027,15]
[357600234,1744225838837,-500.0,0.00030027,15]
[357600235,1744225838847,-150.0,0.00030027,15]
[357600236,1744225838856,-150.0,0.00030055,15]
[357600237,1744225838865,-150.0,0.00030055,15]
[357600238,1744225838874,-500.0,0.00030055,15]
[357600239,1744225838884,-207.07007199,0.00030055,15]
[357600240,1744225838893,-150.0,0.00030082,15]
[357600241,1744225838902,-227.4635009,0.00030082,15]
[357600242,1744225838911,-500.0,0.00030082,15]
[357600243,1744225838921,-15630.2842466,0.000301,3]
[357600244,1744225838930,-371.0,0.000301,2]
[357600245,1744225838939,-12004.24,0.0003011,2]
[357600246,1744225838948,-150.0,0.0003011,15]
[357600247,1744225838957,-580.8159466,0.0003011,15]
[357600248,1744225838967,-310.33098567,0.00030133,5]
[357600249,1744225838976,-152.79038469,0.00030133,5]
[357600250,1744225838986,-514.90291555,0.00030133,2]
[357600251,1744225838996,-378.67938289,0.00030133,2]
[357600252,1744225839005,-353.40319333,0.00030133,2]
[357600253,1744225839014,-291.77,0.00030136,2]
[357600254,1744225839024,-610.0,0.00030137,2]
[357600255,1744225839033,-186.83812353,0.00030137,15]
[357600256,1744225839043,-951.0,0.00030164,2]
[357600257,1744225839052,-15630.2842466,0.00030172,3]
[357600258,1744225839062,-503.24291531,0.00030173,5]
[357600259,1744225839071,-150.0,0.00030173,2]
[357600260,1744225839081,-151.34,0.0003018,2]